fUST/lending_fUST_20240604
["ID","MTS","AMOUNT","RATE_DAILY","PERIOD"]
[328528620,1717491068089,-500.0,0.00024109,2]
[328528621,1717491068097,-500.0,0.00024109,2]
[328528622,1717491068108,-500.0,0.00024109,2]
[328528623,1717491068118,-1211.67,0.00024109,2]
[328528624,1717491068128,-500.0,0.00024109,2]
[328528625,1717491068137,-1063.22,0.00024109,2]
[328528626,1717491068146,-500.0,0.00024109,2]
[328528627,1717491068156,-677.21,0.00024109,2]
[328528628,1717491068165,-500.0,0.00024109,2]
[328528629,1717491068175,-500.0,0.00024109,2]
[328528630,1717491068184,-500.0,0.00024109,2]
[328528631,1717491068194,-505.94,0.00024109,2]
[328528632,1717491068204,-500.0,0.00024109,2]
[328528633,1717491068213,-338.16,0.00024109,2]
[328528634,1717491068224,-625.76,0.00024109,2]
[328528635,1717491068236,-500.0,0.00024109,2]
[328528636,1717491068246,-500.0,0.00024109,2]
[328528637,1717491068255,-500.0,0.00024109,2]
[328528638,1717491068264,-500.0,0.00024109,2]
[328528639,1717491068273,-500.0,0.00024109,2]
[328528640,1717491068283,-500.0,0.00024109,2]
[328528641,1717491068291,-365.92109559,0.00024109,2]
[328528642,1717491068300,-500.0,0.00024109,2]
[328528643,1717491068310,-500.0,0.00024109,2]
[328528644,1717491068320,-500.0,0.00024109,2]
[328528645,1717491068329,-500.0,0.00024109,2]
[328528646,1717491068344,-500.0,0.00024109,2]
[328528647,1717491068353,-500.0,0.00024109,2]
[328528648,1717491068363,-528.05,0.00024109,2]
[328528649,1717491068373,-500.0,0.00024109,2]
[328528650,1717491068383,-500.0,0.00024109,2]
[328528651,1717491068392,-500.0,0.00024109,2]
[328528652,1717491068402,-500.0,0.00024109,2]
[328528653,1717491068412,-500.0,0.00024109,2]
[328528654,1717491068422,-500.0,0.00024109,2]
[328528655,1717491068433,-880.63,0.00024109,2]
[328528656,1717491068442,-500.0,0.00024109,2]
[328528657,1717491068452,-1442.26,0.00024109,2]
[328528658,1717491068461,-1154.39,0.00024109,2]
[328528659,1717491068470,-523.02,0.00024109,2]
[328528660,1717491068480,-500.0,0.00024109,2]
[328528661,1717491068491,-500.0,0.00024109,2]
[328528662,1717491068500,-1023.21,0.00024109,2]
[328528663,1717491068510,-278.8,0.00024109,2]
[328528664,1717491068519,-500.0,0.00024109,2]
[328528665,1717491068529,-500.0,0.00024109,2]
[328528666,1717491068538,-500.0,0.00024109,2]
[328528667,1717491068548,-500.0,0.00024109,2]
[328528668,1717491068557,-500.0,0.00024109,2]
[328528669,1717491068567,-1700.55,0.00024109,2]
[328528670,1717491068576,-500.0,0.00024109,2]
[328528671,1717491068586,-500.0,0.00024109,2]
[328528672,1717491068596,-500.0,0.00024109,2]
[328528673,1717491068605,-500.0,0.00024109,2]
[328528674,1717491068615,-500.0,0.00024109,2]
[328528675,1717491068625,-265.96114784,0.00024109,2]
[328528676,1717491068635,-500.0,0.00024109,2]
[328528677,1717491068645,-529.61,0.00024109,2]
[328528678,1717491068654,-500.0,0.00024109,2]
[328528679,1717491068663,-500.0,0.00024109,2]
[328528680,1717491068672,-500.0,0.00024109,2]
[328528681,1717491068682,-500.0,0.00024109,2]
[328528682,1717491068691,-500.0,0.00024109,2]
[328528683,1717491068700,-3200.1,0.00024109,2]
[328528684,1717491068710,-1036.62,0.00024109,2]
[328528685,1717491068719,-446.48,0.00024109,2]
[328528686,1717491068729,-200.0,0.00024109,2]
[328528687,1717491068743,-558.11,0.00024109,2]
[328528688,1717491068753,-2081.33,0.00024109,2]
[328528689,1717491068762,-568.58,0.00024109,2]
[328528690,1717491068771,-160.32280564,0.00024109,2]
[328528691,1717491068780,-2897.19,0.00024109,2]
[328528692,1717491068789,-716.73,0.00024109,2]
[328528693,1717491068798,-500.0,0.00024109,2]
[328528694,1717491068807,-551.83,0.00024109,2]
[328528695,1717491068816,-500.0,0.00024109,2]
[328528696,1717491068825,-500.0,0.00024109,2]
[328528697,1717491068834,-1067.09,0.00024109,2]
[328528698,1717491068844,-500.0,0.00024109,2]
[328528699,1717491068853,-500.0,0.00024109,2]
[328528700,1717491068862,-500.0,0.00024109,2]
[328528701,1717491068872,-527.02890241,0.00024109,2]
[328528702,1717491068882,-500.0,0.00024109,2]
[328528703,1717491068891,-500.0,0.00024109,2]
[328528704,1717491068901,-784.48,0.00024109,2]
[328528705,1717491068910,-500.0,0.00024109,2]
[328528706,1717491068919,-500.0,0.00024109,2]
[328528707,1717491068930,-2398.11,0.00024109,2]
[328528708,1717491068939,-500.0,0.00024109,2]
[328528709,1717491068948,-500.0,0.00024109,2]
[328528710,1717491068958,-500.0,0.00024109,2]
[328528711,1717491068967,-500.0,0.00024109,2]
[328528712,1717491068977,-500.0,0.00024109,2]
[328528713,1717491068991,-6351.48,0.00024109,2]
[328528714,1717491069000,-500.0,0.00024109,2]
[328528715,1717491069009,-500.0,0.00024109,2]
[328528716,1717491069018,-500.0,0.00024109,2]
[328528717,1717491069028,-500.0,0.00024109,2]
[328528718,1717491069037,-500.0,0.00024109,2]
[328528719,1717491069046,-500.0,0.00024109,2]
[328528720,1717491069055,-2864.71,0.00024109,2]
[328528721,1717491069064,-548.76,0.00024109,2]
[328528722,1717491069074,-500.0,0.00024109,2]
[328528723,1717491069084,-500.0,0.00024109,2]
[328528724,1717491069094,-500.0,0.00024109,2]
[328528725,1717491069104,-500.0,0.00024109,2]
[328528726,1717491069113,-500.0,0.00024109,2]
[328528727,1717491069124,-500.0,0.00024109,2]
[328528728,1717491069134,-500.0,0.00024109,2]
[328528729,1717491069144,-500.0,0.00024109,2]
[328528730,1717491069154,-1053.55,0.00024109,2]
[328528731,1717491069164,-500.0,0.00024109,2]
[328528732,1717491069173,-508.28,0.00024109,2]
[328528733,1717491069183,-8636.82,0.00024109,2]
[328528734,1717491069192,-8387.6,0.00024109,2]
[328528735,1717491069202,-9610.03,0.00024109,2]
[328528736,1717491069212,-587.19,0.00024109,2]
[328528737,1717491069222,-2962.26,0.00024109,2]
[328528738,1717491069304,-500.0,0.00024109,2]
[328528739,1717491069315,-500.0,0.00024109,2]
[328528740,1717491069325,-500.0,0.00024109,2]
[328528741,1717491069337,-500.0,0.00024109,2]
[328528742,1717491069346,-500.0,0.00024109,2]
[328528743,1717491069360,-878.67,0.00024109,2]
[328528744,1717491069369,-500.0,0.00024109,2]
[328528745,1717491069379,-500.0,0.00024109,2]
[328528746,1717491069388,-538.09643397,0.00024109,2]
[328528747,1717491069399,-1141.41,0.00024109,2]
[328528748,1717491069409,-613.13,0.00024109,2]
[328528749,1717491069418,-576.98,0.00024109,2]
[328528750,1717491069429,-500.0,0.00024109,2]
[328528751,1717491069440,-1776.49,0.00024109,2]
[328528752,1717491069450,-692.36,0.00024109,2]
[328528753,1717491069460,-500.0,0.00024109,2]
[328528754,1717491069470,-500.0,0.00024109,2]
[328528755,1717491069479,-604.96,0.00024109,2]
[328528756,1717491069492,-500.0,0.00024383,2]
[328528757,1717491069501,-408.06,0.00024383,2]
[328528758,1717491069511,-500.0,0.00024383,2]
[328528759,1717491069520,-500.0,0.00024383,2]
[328528760,1717491069529,-247.77,0.00024383,2]
[328528761,1717491069539,-500.0,0.00024383,2]
[328528762,1717491069548,-1547.46,0.00024383,2]
[328528763,1717491069558,-500.0,0.00024383,2]
[328528764,1717491069567,-517.42,0.00024383,2]
[328528765,1717491069577,-500.0,0.00024383,2]
[328528766,1717491069588,-505.12044019,0.00024383,2]
[328528767,1717491069598,-500.0,0.00024383,2]
[328528768,1717491069608,-503.37455787,0.00024383,2]
[328528769,1717491069618,-500.0,0.00024383,2]
[328528770,1717491069627,-500.0,0.00024383,2]
[328528771,1717491069637,-502.04,0.00024383,2]
[328528772,1717491069647,-771.55,0.00024383,2]
[328528773,1717491069657,-500.0,0.00024383,2]
[328528774,1717491069667,-297.36,0.00024383,2]
[328528775,1717491069677,-1211.67,0.00024383,2]
[328528776,1717491069687,-500.0,0.00024383,2]
[328528777,1717491069696,-1063.22,0.00024383,2]
[328528778,1717491069705,-677.21,0.00024383,2]
[328528779,1717491069715,-500.0,0.00024383,2]
[328528780,1717491069724,-500.0,0.00024383,2]
[328528781,1717491069736,-505.94,0.00024383,2]
[328528782,1717491069746,-625.76,0.00024383,2]
[328528783,1717491069755,-271.8,0.00024383,2]
[328528784,1717491069764,-255.92,0.00024383,2]
[328528785,1717491069774,-500.0,0.00024383,2]
[328528786,1717491069784,-500.0,0.00024383,2]
[328528787,1717491069793,-500.0,0.00024383,2]
[328528788,1717491069803,-258.24,0.00024383,2]
[328528789,1717491069812,-500.0,0.00024383,2]
[328528790,1717491069821,-500.0,0.00024383,2]
[328528791,1717491069830,-528.05,0.00024383,2]
[328528792,1717491069840,-500.0,0.00024383,2]
[328528793,1717491069850,-327.04,0.00024383,2]
[328528794,1717491069860,-500.0,0.00024383,2]
[328528795,1717491069869,-500.0,0.00024383,2]
[328528796,1717491069879,-880.63,0.00024383,2]
[328528797,1717491069889,-1442.26,0.00024383,2]
[328528798,1717491069899,-1154.39,0.00024383,2]
[328528799,1717491069908,-523.02,0.00024383,2]
[328528800,1717491069917,-413.64,0.00024383,2]
[328528801,1717491069926,-1023.21,0.00024383,2]
[328528802,1717491069936,-282.78,0.00024383,2]
[328528803,1717491069945,-500.0,0.00024383,2]
[328528804,1717491069955,-500.0,0.00024383,2]
[328528805,1717491069964,-500.0,0.00024383,2]
[328528806,1717491069974,-500.0,0.00024383,2]
[328528807,1717491069987,-1700.55,0.00024383,2]
[328528808,1717491069998,-500.0,0.00024383,2]
[328528809,1717491070007,-500.0,0.00024383,2]
[328528810,1717491070016,-500.0,0.00024383,2]
[328528811,1717491070025,-500.0,0.00024383,2]
[328528812,1717491070034,-500.0,0.00024383,2]
[328528813,1717491070043,-529.61,0.00024383,2]
[328528814,1717491070053,-500.0,0.00024383,2]
[328528815,1717491070062,-500.0,0.00024383,2]
[328528816,1717491070071,-500.0,0.00024383,2]
[328528817,1717491070080,-3200.1,0.00024383,2]
[328528818,1717491070090,-1036.62,0.00024383,2]
[328528819,1717491070100,-200.0,0.00024383,2]
[328528820,1717491070110,-558.11,0.00024383,2]
[328528821,1717491070119,-2081.33,0.00024383,2]
[328528822,1717491070128,-2897.19,0.00024383,2]
[328528823,1717491070138,-716.73,0.00024383,2]
[328528824,1717491070148,-500.0,0.00024383,2]
[328528825,1717491070157,-551.83,0.00024383,2]
[328528826,1717491070167,-1067.09,0.00024383,2]
[328528827,1717491070176,-425.68,0.00024383,2]
[328528828,1717491070186,-500.0,0.00024383,2]
[328528829,1717491070195,-784.48,0.00024383,2]
[328528830,1717491070204,-500.0,0.00024383,2]
[328528831,1717491070214,-2398.11,0.00024383,2]
[328528832,1717491070223,-500.0,0.00024383,2]
[328528833,1717491070237,-500.0,0.00024383,2]
[328528834,1717491070247,-504.69195701,0.00024383,2]
[328528835,1717491070257,-6351.48,0.00024383,2]
[328528836,1717491070267,-221.6,0.00024383,2]
[328528837,1717491070276,-500.0,0.00024383,2]
[328528838,1717491070286,-500.0,0.00024383,2]
[328528839,1717491070296,-500.0,0.00024383,2]
[328528840,1717491070305,-2864.71,0.00024383,2]
[328528841,1717491070314,-548.76,0.00024383,2]
[328528842,1717491070324,-313.12,0.00024383,2]
[328528843,1717491070336,-500.0,0.00024383,2]
[328528844,1717491070348,-500.0,0.00024383,2]
[328528845,1717491070358,-500.0,0.00024383,2]
[328528846,1717491070368,-500.0,0.00024383,2]
[328528847,1717491070378,-500.0,0.00024383,2]
[328528848,1717491070391,-1053.55,0.00024383,2]
[328528849,1717491070401,-500.0,0.00024383,2]
[328528850,1717491070411,-508.28,0.00024383,2]
[328528851,1717491070422,-8636.82,0.00024383,2]
[328528852,1717491070499,-8387.6,0.00024383,2]
[328528853,1717491070508,-9610.03,0.00024383,2]
[328528854,1717491070518,-587.19,0.00024383,2]
[328528855,1717491070528,-2962.26,0.00024383,2]
[328528856,1717491070538,-500.0,0.00024383,2]
[328528857,1717491070548,-500.0,0.00024383,2]
[328528858,1717491070557,-504.41301189,0.00024383,2]
[328528859,1717491070567,-500.0,0.00024383,2]
[328528860,1717491070577,-500.0,0.00024383,2]
[328528861,1717491070587,-878.67,0.00024383,2]
[328528862,1717491070597,-500.0,0.00024383,2]
[328528863,1717491070607,-500.0,0.00024383,2]
[328528864,1717491070616,-1141.41,0.00024383,2]
[328528865,1717491070627,-613.13,0.00024383,2]
[328528866,1717491070636,-576.98,0.00024383,2]
[328528867,1717491070646,-500.0,0.00024383,2]
[328528868,1717491070657,-1776.49,0.00024383,2]
[328528869,1717491070667,-692.36,0.00024383,2]
[328528870,1717491070677,-502.47478464,0.00024383,2]
[328528871,1717491070687,-604.96,0.00024383,2]
[328528872,1717491070697,-277.05086169,0.00024399,2]
[328528873,1717491070708,-764.55296533,0.000244,2]
[328528874,1717491070717,-166.666666,0.00024482,2]
[328528875,1717491070727,-250.2,0.00024605,7]
[328528876,1717491070739,-150.93962415,0.00024633,2]
[328528877,1717491070750,-411.23690711,0.00024656,2]
[328528878,1717491070760,-180.14,0.00024657,2]
[328528879,1717491070769,-500.0,0.00024657,2]
[328528880,1717491070779,-500.0,0.00024657,2]
[328528881,1717491070788,-500.0,0.00024657,2]
[328528882,1717491070799,-1547.46,0.00024657,2]
[328528883,1717491070808,-500.0,0.00024657,2]
[328528884,1717491070818,-517.42,0.00024657,2]
[328528885,1717491070828,-500.0,0.00024657,2]
[328528886,1717491070838,-500.0,0.00024657,2]
[328528887,1717491070848,-502.04,0.00024657,2]
[328528888,1717491070858,-771.55,0.00024657,2]
[328528889,1717491070868,-1211.67,0.00024657,2]
[328528890,1717491070877,-500.0,0.00024657,2]
[328528891,1717491070886,-1063.22,0.00024657,2]
[328528892,1717491070896,-677.21,0.00024657,2]
[328528893,1717491070905,-500.0,0.00024657,2]
[328528894,1717491070915,-500.0,0.00024657,2]
[328528895,1717491070925,-505.94,0.00024657,2]
[328528896,1717491070935,-625.76,0.00024657,2]
[328528897,1717491070945,-524.29,0.00024657,2]
[328528898,1717491070955,-500.0,0.00024657,2]
[328528899,1717491070965,-500.0,0.00024657,2]
[328528900,1717491070975,-500.0,0.00024657,2]
[328528901,1717491070987,-314.68,0.00024657,2]
[328528902,1717491070996,-528.05,0.00024657,2]
[328528903,1717491071006,-168.61,0.00024657,2]
[328528904,1717491071016,-500.0,0.00024657,2]
[328528905,1717491071026,-256.81,0.00024657,2]
[328528906,1717491071036,-880.63,0.00024657,2]
[328528907,1717491071046,-1442.26,0.00024657,2]
[328528908,1717491071055,-1154.39,0.00024657,2]
[328528909,1717491071065,-523.02,0.00024657,2]
[328528910,1717491071074,-1023.21,0.00024657,2]
[328528911,1717491071084,-500.0,0.00024657,2]
[328528912,1717491071093,-500.0,0.00024657,2]
[328528913,1717491071103,-443.11,0.00024657,2]
[328528914,1717491071112,-500.0,0.00024657,2]
[328528915,1717491071122,-1700.55,0.00024657,2]
[328528916,1717491071132,-438.61,0.00024657,2]
[328528917,1717491071142,-500.0,0.00024657,2]
[328528918,1717491071151,-500.0,0.00024657,2]
[328528919,1717491071160,-500.0,0.00024657,2]
[328528920,1717491071169,-500.0,0.00024657,2]
[328528921,1717491071178,-529.61,0.00024657,2]
[328528922,1717491071187,-500.0,0.00024657,2]
[328528923,1717491071196,-500.0,0.00024657,2]
[328528924,1717491071206,-500.0,0.00024657,2]
[328528925,1717491071215,-3200.1,0.00024657,2]
[328528926,1717491071225,-1036.62,0.00024657,2]
[328528927,1717491071237,-200.0,0.00024657,2]
[328528928,1717491071247,-558.11,0.00024657,2]
[328528929,1717491071256,-2081.33,0.00024657,2]
[328528930,1717491071265,-2897.19,0.00024657,2]
[328528931,1717491071274,-716.73,0.00024657,2]
[328528932,1717491071283,-500.0,0.00024657,2]
[328528933,1717491071292,-551.83,0.00024657,2]
[328528934,1717491071302,-1067.09,0.00024657,2]
[328528935,1717491071312,-500.0,0.00024657,2]
[328528936,1717491071321,-784.48,0.00024657,2]
[328528937,1717491071331,-500.0,0.00024657,2]
[328528938,1717491071342,-2398.11,0.00024657,2]
[328528939,1717491071356,-500.0,0.00024657,2]
[328528940,1717491071366,-500.0,0.00024657,2]
[328528941,1717491071375,-6351.48,0.00024657,2]
[328528942,1717491071386,-500.0,0.00024657,2]
[328528943,1717491071395,-500.0,0.00024657,2]
[328528944,1717491071404,-500.0,0.00024657,2]
[328528945,1717491071414,-2864.71,0.00024657,2]
[328528946,1717491071423,-548.76,0.00024657,2]
[328528947,1717491071434,-500.0,0.00024657,2]
[328528948,1717491071444,-180.4,0.00024657,2]
[328528949,1717491071453,-500.0,0.00024657,2]
[328528950,1717491071463,-500.0,0.00024657,2]
[328528951,1717491071472,-500.0,0.00024657,2]
[328528952,1717491071482,-1053.55,0.00024657,2]
[328528953,1717491071493,-500.0,0.00024657,2]
[328528954,1717491071502,-508.28,0.00024657,2]
[328528955,1717491071511,-8636.82,0.00024657,2]
[328528956,1717491071521,-8387.6,0.00024657,2]
[328528957,1717491071591,-9610.03,0.00024657,2]
[328528958,1717491071600,-587.19,0.00024657,2]
[328528959,1717491071610,-2962.26,0.00024657,2]
[328528960,1717491071619,-500.0,0.00024657,2]
[328528961,1717491071628,-500.0,0.00024657,2]
[328528962,1717491071638,-500.0,0.00024657,2]
[328528963,1717491071647,-500.0,0.00024657,2]
[328528964,1717491071657,-878.67,0.00024657,2]
[328528965,1717491071666,-500.0,0.00024657,2]
[328528966,1717491071675,-500.0,0.00024657,2]
[328528967,1717491071684,-1141.41,0.00024657,2]
[328528968,1717491071694,-613.13,0.00024657,2]
[328528969,1717491071703,-576.98,0.00024657,2]
[328528970,1717491071713,-500.0,0.00024657,2]
[328528971,1717491071722,-1776.49,0.00024657,2]
[328528972,1717491071731,-692.36,0.00024657,2]
[328528973,1717491071745,-604.96,0.00024657,2]
[328528974,1717491071755,-500.84596764,0.00024658,2]
[328528975,1717491071764,-498.0,0.00024875,2]
[328528976,1717491071773,-150.0,0.00024875,2]
[328528977,1717491071782,-155.87348404,0.00024929,2]
[328528978,1717491071792,-383.7444428,0.0002493,2]
[328528979,1717491071801,-500.0,0.00024931,6]
[328528980,1717491071811,-500.0,0.00024931,6]
[328528981,1717491071820,-500.0,0.00024931,6]
[328528982,1717491071830,-1547.46,0.00024931,6]
[328528983,1717491071839,-500.0,0.00024931,6]
[328528984,1717491071849,-517.42,0.00024931,6]
[328528985,1717491071859,-500.0,0.00024931,6]
[328528986,1717491071868,-500.0,0.00024931,6]
[328528987,1717491071878,-502.04,0.00024931,6]
[328528988,1717491071888,-771.55,0.00024931,6]
[328528989,1717491071897,-1211.67,0.00024931,6]
[328528990,1717491071907,-500.0,0.00024931,6]
[328528991,1717491071916,-1063.22,0.00024931,6]
[328528992,1717491071925,-677.21,0.00024931,6]
[328528993,1717491071935,-500.0,0.00024931,6]
[328528994,1717491071944,-500.0,0.00024931,6]
[328528995,1717491071954,-505.94,0.00024931,6]
[328528996,1717491071963,-625.76,0.00024931,6]
[328528997,1717491071972,-500.0,0.00024931,6]
[328528998,1717491071981,-500.0,0.00024931,6]
[328528999,1717491071994,-500.0,0.00024931,6]
[328529000,1717491072003,-528.05,0.00024931,6]
[328529001,1717491072012,-500.0,0.00024931,6]
[328529002,1717491072021,-880.63,0.00024931,6]
[328529003,1717491072030,-1442.26,0.00024931,6]
[328529004,1717491072039,-1154.39,0.00024931,6]
[328529005,1717491072053,-523.02,0.00024931,6]
[328529006,1717491072072,-1023.21,0.00024931,6]
[328529007,1717491072088,-500.0,0.00024931,6]
[328529008,1717491072106,-500.0,0.00024931,6]
[328529009,1717491072126,-500.0,0.00024931,6]
[328529010,1717491072143,-1700.55,0.00024931,6]
[328529011,1717491072160,-500.0,0.00024931,6]
[328529012,1717491072175,-500.0,0.00024931,6]
[328529013,1717491072190,-500.0,0.00024931,6]
[328529014,1717491072210,-500.0,0.00024931,6]
[328529015,1717491072226,-529.61,0.00024931,6]
[328529016,1717491072241,-500.0,0.00024931,6]
[328529017,1717491072260,-500.0,0.00024931,6]
[328529018,1717491072274,-607.04,0.00024931,6]
[328529019,1717491072290,-3200.1,0.00024931,6]
[328529020,1717491072303,-1036.62,0.00024931,6]
[328529021,1717491072318,-200.0,0.00024931,6]
[328529022,1717491072334,-558.11,0.00024931,6]
[328529023,1717491072354,-2081.33,0.00024931,6]
[328529024,1717491072369,-2897.19,0.00024931,6]
[328529025,1717491072385,-716.73,0.00024931,6]
[328529026,1717491072400,-500.0,0.00024931,6]
[328529027,1717491072414,-551.83,0.00024931,6]
[328529028,1717491072431,-1067.09,0.00024931,6]
[328529029,1717491072444,-500.0,0.00024931,6]
[328529030,1717491072459,-784.48,0.00024931,6]
[328529031,1717491072474,-380.11179842,0.00024931,6]
[328529032,1717491072490,-2398.11,0.00024931,6]
[328529033,1717491072504,-500.0,0.00024931,6]
[328529034,1717491072520,-500.0,0.00024931,6]
[328529035,1717491072534,-6351.48,0.00024931,6]
[328529036,1717491072548,-500.0,0.00024931,6]
[328529037,1717491072563,-500.0,0.00024931,6]
[328529038,1717491072577,-500.0,0.00024931,6]
[328529039,1717491072591,-2864.71,0.00024931,6]
[328529040,1717491072605,-548.76,0.00024931,6]
[328529041,1717491072619,-500.0,0.00024931,6]
[328529042,1717491072633,-500.0,0.00024931,6]
[328529043,1717491072647,-500.0,0.00024931,6]
[328529044,1717491072660,-500.0,0.00024931,6]
[328529045,1717491072675,-1053.55,0.00024931,6]
[328529046,1717491072688,-588.32,0.00024931,6]
[328529047,1717491072702,-508.28,0.00024931,6]
[328529048,1717491072716,-8636.82,0.00024931,6]
[328529049,1717491072729,-8387.6,0.00024931,6]
[328529050,1717491072745,-9610.03,0.00024931,6]
[328529051,1717491072760,-587.19,0.00024931,6]
[328529052,1717491072775,-2962.26,0.00024931,6]
[328529053,1717491072867,-500.0,0.00024931,6]
[328529054,1717491072877,-500.0,0.00024931,6]
[328529055,1717491072887,-500.0,0.00024931,6]
[328529056,1717491072896,-500.0,0.00024931,6]
[328529057,1717491072905,-878.67,0.00024931,6]
[328529058,1717491072914,-500.0,0.00024931,6]
[328529059,1717491072923,-500.0,0.00024931,6]
[328529060,1717491072933,-1141.41,0.00024931,6]
[328529061,1717491072942,-613.13,0.00024931,6]
[328529062,1717491072951,-576.98,0.00024931,6]
[328529063,1717491072960,-500.0,0.00024931,6]
[328529064,1717491072969,-1776.49,0.00024931,6]
[328529065,1717491072978,-604.96,0.00024931,2]
[328529066,1717491072989,-620.0277174,0.00024939,2]
[328529067,1717491072998,-4369.0,0.0002497,35]
[328529068,1717491073007,-262.94,0.0002498,35]
[328529069,1717491073017,-4369.0,0.0002498,35]
[328529070,1717491073026,-150.5,0.0002499,35]
[328529071,1717491073035,-4369.0,0.0002499,35]
[328529072,1717491073044,-4101.1224947,0.00025,10]
[328529073,1717491073053,-200.0,0.00025,2]
[328529074,1717491073062,-29405.43213554,0.00025,2]
[328529075,1717491073071,-165906.81942867,0.00025,2]
[328529076,1717491073081,-160.0,0.00025,2]
[328529077,1717491073091,-250.2,0.00025139,7]
[328529078,1717491073100,-500.0,0.00025205,6]
[328529079,1717491073110,-500.0,0.00025205,6]
[328529080,1717491073119,-500.0,0.00025205,6]
[328529081,1717491073128,-1547.46,0.00025205,6]
[328529082,1717491073137,-500.0,0.00025205,6]
[328529083,1717491073146,-517.42,0.00025205,6]
[328529084,1717491073155,-607.3211258,0.00025205,6]
[328529085,1717491073165,-500.0,0.00025205,6]
[328529086,1717491073174,-502.04,0.00025205,6]
[328529087,1717491073183,-771.55,0.00025205,6]
[328529088,1717491073192,-1211.67,0.00025205,6]
[328529089,1717491073201,-500.0,0.00025205,6]
[328529090,1717491073210,-1063.22,0.00025205,6]
[328529091,1717491073219,-677.21,0.00025205,6]
[328529092,1717491073228,-500.0,0.00025205,6]
[328529093,1717491073239,-500.0,0.00025205,6]
[328529094,1717491073248,-505.94,0.00025205,6]
[328529095,1717491073257,-625.76,0.00025205,6]
[328529096,1717491073266,-500.0,0.00025205,6]
[328529097,1717491073275,-500.0,0.00025205,6]
[328529098,1717491073284,-500.0,0.00025205,6]
[328529099,1717491073294,-528.05,0.00025205,6]
[328529100,1717491073303,-500.0,0.00025205,6]
[328529101,1717491073312,-880.63,0.00025205,6]
[328529102,1717491073321,-1442.26,0.00025205,6]
[328529103,1717491073330,-1154.39,0.00025205,6]
[328529104,1717491073341,-523.02,0.00025205,6]
[328529105,1717491073353,-1023.21,0.00025205,6]
[328529106,1717491073362,-500.0,0.00025205,6]
[328529107,1717491073372,-500.0,0.00025205,6]
[328529108,1717491073381,-500.0,0.00025205,6]
[328529109,1717491073391,-1700.55,0.00025205,6]
[328529110,1717491073400,-500.0,0.00025205,6]
[328529111,1717491073410,-367.41,0.00025205,6]
[328529112,1717491073419,-500.0,0.00025205,6]
[328529113,1717491073430,-500.0,0.00025205,6]
[328529114,1717491073440,-529.61,0.00025205,6]
[328529115,1717491073449,-500.0,0.00025205,6]
[328529116,1717491073458,-298.16,0.00025205,6]
[328529117,1717491073468,-3200.1,0.00025205,6]
[328529118,1717491073477,-1036.62,0.00025205,6]
[328529119,1717491073488,-558.11,0.00025205,6]